bitfinex-derivatives/quotes_BTCF0:USTF0_20241221
["timestamp","ask_amount","ask_price","bid_price","bid_amount"]
[1734816679194,0.005,97290.0,97289.0,0.42348011]
[1734816679396,0.003,97290.0,97289.0,0.42448011]
[1734816679786,0.003,97290.0,97289.0,0.01226811]
[1734816679987,0.003,97290.0,97283.0,0.051414]
[1734816680296,0.041,97289.0,97284.0,0.051414]
[1734816680494,0.3608,97288.0,97270.0,0.13213218]
[1734816680793,0.3608,97288.0,97282.0,0.051415]
[1734816680997,0.3608,97288.0,97270.0,0.13213218]
[1734816681184,0.3608,97288.0,97277.0,0.051418]
[1734816681385,0.3608,97288.0,97270.0,0.13213218]
[1734816681788,0.3608,97288.0,97284.0,0.001]
[1734816681991,0.6608,97288.0,97269.0,0.051422]
[1734816682192,0.3608,97274.0,97260.0,0.12189486]
[1734816682383,0.0413,97273.0,97272.0,0.05142]
[1734816685006,0.0413,97273.0,97272.0,0.05442]
[1734816685390,0.0413,97273.0,97272.0,0.05642]
[1734816686095,0.0413,97273.0,97272.0,0.005]
[1734816686285,0.09272,97273.0,97272.0,0.005]
[1734816686489,0.0413,97273.0,97272.0,0.001]
[1734816686689,0.0413,97273.0,97255.0,0.0102043]
[1734816686690,0.09272,97273.0,97255.0,0.0102043]
[1734816686898,0.3608,97269.0,97264.0,0.051424]
[1734816687592,0.3608,97269.0,97266.0,0.051424]
[1734816688192,0.3608,97269.0,97267.0,0.051423]
[1734816688393,0.0413,97273.0,97272.0,0.051421]
[1734816688592,0.1222145,97282.0,97281.0,0.051416]
[1734816689796,0.3608,97298.0,97276.0,0.3608]
[1734816690100,0.0402,97292.0,97285.0,0.051414]
[1734816690294,0.3608,97290.0,97285.0,0.051414]
[1734816691094,0.051412,97288.0,97281.0,0.001]
[1734816691401,0.009,97282.0,97281.0,0.001]
[1734816691601,0.012,97282.0,97268.0,0.3608]
[1734816691898,0.003,97282.0,97280.0,0.051416]
[1734816692200,0.051414,97285.0,97280.0,0.051416]
[1734816692385,0.051414,97285.0,97281.0,0.001]
[1734816692584,0.051414,97285.0,97281.0,0.052416]
[1734816692789,0.051414,97285.0,97282.0,0.051415]
[1734816693496,0.0448,97286.0,97285.0,0.051414]
[1734816694003,0.0408,97286.0,97285.0,0.051414]
[1734816694995,0.0408,97286.0,97281.0,0.001]
[1734816694996,0.051415,97282.0,97281.0,0.001]
[1734816695207,0.70612001,97286.0,97273.0,0.05142]
[1734816695395,0.051425,97265.0,97259.0,0.051427]
[1734816695701,0.3608,97262.0,97260.0,0.051427]
[1734816698102,0.3618,97262.0,97260.0,0.051427]
[1734816698587,0.3608,97262.0,97260.0,0.051427]
[1734816698790,0.3638,97262.0,97260.0,0.051427]
[1734816700008,0.3648,97262.0,97260.0,0.051427]
[1734816701697,0.05143,97254.0,97249.0,0.00010291]
[1734816701901,0.051432,97250.0,97249.0,0.00010291]
[1734816702101,0.05144,97235.0,97234.0,0.24567113]
[1734816702300,0.41224,97235.0,97234.0,0.24567113]
[1734816702498,0.41224,97235.0,97234.0,0.18137113]
[1734816702698,0.45144,97235.0,97234.0,0.18137113]
[1734816703005,0.051445,97227.0,97224.0,0.051446]
[1734816703195,0.3608,97225.0,97224.0,0.051446]
[1734816703797,0.3608,97225.0,97197.0,0.0001066]
[1734816703798,0.3608,97225.0,97211.0,0.051452]
[1734816704104,0.412251,97215.0,97204.0,0.051456]
[1734816704406,0.3608,97215.0,97197.0,0.0001066]
[1734816704605,0.3608,97215.0,97214.0,0.051451]
[1734816705400,0.3668,97215.0,97214.0,0.052451]
[1734816705601,0.3668,97215.0,97214.0,0.001]
[1734816705806,0.3668,97215.0,97197.0,0.0001066]
[1734816706000,0.41226,97198.0,97197.0,0.0001066]
[1734816706305,0.41235777,97198.0,97197.0,0.0001066]
[1734816707394,0.41235777,97198.0,97197.0,0.0051066]
[1734816707895,0.41235777,97198.0,97197.0,0.0081066]
[1734816709804,0.77315777,97198.0,97197.0,0.0081066]
[1734816720411,0.77315777,97198.0,97197.0,0.0031066]
[1734816720412,0.77415777,97198.0,97197.0,0.0031066]
[1734816720611,0.051467,97185.0,97174.0,0.3608]
[1734816720801,0.051467,97185.0,97183.0,0.051467]
[1734816722512,0.052467,97185.0,97183.0,0.059467]
[1734816722813,0.413267,97185.0,97183.0,0.008]
[1734816723112,0.413267,97185.0,97168.0,0.0144447]
[1734816723113,0.413267,97185.0,97168.0,0.0015437]
[1734816723319,0.05148,97159.0,97157.0,0.051481]
[1734816723506,0.41228,97159.0,97157.0,0.051481]
[1734816723809,0.41228,97159.0,97152.0,0.0846]
[1734816724208,0.41228,97159.0,97157.0,0.051481]
[1734816724612,0.3608,97159.0,97157.0,0.051481]
[1734816725512,0.3618,97159.0,97158.0,0.00511629]
[1734816725714,0.003,97159.0,97148.0,0.3608]
[1734816725907,0.003,97159.0,97158.0,0.3608]
[1734816726109,0.007,97159.0,97158.0,0.001]
[1734816726414,0.005,97159.0,97158.0,0.3618]
[1734816726719,0.007,97159.0,97158.0,0.3608]
[1734816727013,0.12169049,97172.0,97171.0,0.051474]
[1734816727611,0.18253573,97191.0,97181.0,0.051469]
[1734816728420,0.051462,97194.0,97181.0,0.051469]
[1734816728712,0.0412,97197.0,97182.0,0.051468]
[1734816729020,0.092661,97197.0,97182.0,0.051468]
[1734816729609,0.092661,97197.0,97171.0,0.002]
[1734816729816,0.3618,97189.0,97183.0,0.051467]
[1734816730014,0.051465,97188.0,97182.0,0.002]
[1734816730218,0.051467,97184.0,97182.0,0.002]
[1734816730415,0.3608,97189.0,97182.0,0.004]
[1734816730714,0.3608,97189.0,97182.0,0.002]
[1734816730917,0.3608,97189.0,97183.0,0.002]
[1734816731214,0.051467,97184.0,97183.0,0.002]
[1734816732412,0.051467,97184.0,97182.0,0.002]
[1734816732615,0.051473,97174.0,97163.0,0.051478]
[1734816732811,0.3608,97170.0,97156.0,0.051482]
[1734816733211,0.3608,97170.0,97149.0,0.0426]
[1734816733419,0.051476,97168.0,97157.0,0.051481]
[1734816733808,0.3608,97170.0,97157.0,0.051481]
[1734816734016,0.051478,97164.0,97157.0,0.051481]
[1734816734316,0.1532461,97165.0,97149.0,0.0426]
[1734816734620,0.05148,97160.0,97145.0,0.0386]
[1734816734815,0.1532461,97165.0,97148.0,0.051486]
[1734816735004,0.051477,97166.0,97155.0,0.051482]
[1734816735409,0.051477,97166.0,97158.0,0.006]
[1734816735721,0.3618,97170.0,97165.0,0.051477]
[1734816735918,0.3628,97170.0,97165.0,0.051477]
[1734816736117,0.3618,97170.0,97165.0,0.051477]
[1734816736312,0.002,97166.0,97165.0,0.051477]
[1734816736615,0.007,97166.0,97160.0,0.3608]
[1734816736819,0.007,97166.0,97160.0,0.41228]
[1734816737021,0.003,97170.0,97160.0,0.41228]
[1734816737212,0.01,97170.0,97165.0,0.001]
[1734816738420,0.3708,97170.0,97165.0,0.001]
[1734816738628,0.051477,97166.0,97165.0,0.001]
[1734816738826,0.051477,97166.0,97149.0,0.051486]
[1734816738827,0.051481,97159.0,97149.0,0.051486]
[1734816739118,0.3608,97156.0,97137.0,0.00154409]
[1734816739722,0.051485,97151.0,97145.0,0.051488]
[1734816740025,0.20473713,97151.0,97145.0,0.051488]
[1734816740226,0.0417,97150.0,97145.0,0.051488]
[1734816741026,0.0417,97150.0,97137.0,0.00154409]
[1734816741027,0.03607681,97149.0,97146.0,0.051487]
[1734816741328,0.02789104,97148.0,97147.0,0.00109117]
[1734816741912,0.02789104,97148.0,97147.0,0.00209117]
[1734816742117,0.01072732,97148.0,97147.0,0.00209117]
[1734816742316,0.02786126,97148.0,97147.0,0.00209117]
[1734816742520,0.01072732,97148.0,97147.0,0.00309117]
[1734816742819,0.01072732,97148.0,97147.0,0.00209117]
[1734816743122,0.01072732,97148.0,97147.0,0.00409117]
[1734816743719,0.01058516,97148.0,97147.0,0.00409117]
[1734816744523,0.18940731,97155.0,97154.0,0.051483]
[1734816744733,0.19997395,97155.0,97154.0,0.051483]
[1734816745424,0.04672182,97155.0,97154.0,0.051483]
[1734816745929,0.00309596,97155.0,97154.0,0.051483]
[1734816746119,0.01464943,97155.0,97154.0,0.051483]
[1734816747220,0.01364943,97155.0,97154.0,0.051483]
[1734816747824,0.01264943,97155.0,97154.0,0.051483]
[1734816748620,0.01265494,97155.0,97154.0,0.051483]
[1734816749017,0.00209596,97155.0,97154.0,0.051483]
[1734816749331,0.00109596,97155.0,97154.0,0.051483]
[1734816750628,9.596e-05,97155.0,97154.0,0.413283]
[1734816751029,0.15325213,97166.0,97165.0,0.051477]
[1734816751226,0.15325213,97166.0,97165.0,0.412277]
[1734816752128,0.15335006,97166.0,97165.0,0.412277]
[1734816752353,9.793e-05,97166.0,97165.0,0.412277]
[1734816752627,0.15325213,97179.0,97178.0,0.05147]
[1734816752933,0.15325213,97179.0,97178.0,0.41227]
[1734816753426,0.15336832,97179.0,97178.0,0.41227]
[1734816753935,0.00011619,97179.0,97178.0,0.41227]
[1734816755232,0.15325213,97191.0,97190.0,0.051464]
[1734816755532,0.19225213,97200.0,97190.0,0.3608]
[1734816755833,0.15325213,97200.0,97198.0,0.3608]
[1734816756132,0.15325213,97200.0,97199.0,0.051459]
[1734816756734,0.009,97200.0,97199.0,0.051459]
[1734816757122,0.0397,97204.0,97198.0,0.3608]
[1734816757325,0.0397,97204.0,97203.0,0.051457]
[1734816758529,0.0397,97204.0,97199.0,0.051459]
[1734816759127,0.0397,97204.0,97198.0,0.3608]
[1734816759128,0.0397,97204.0,97201.0,0.051458]
[1734816759530,0.0437,97204.0,97201.0,0.051458]
[1734816760232,0.0527,97204.0,97201.0,0.051458]
[1734816760429,0.0527,97204.0,97190.0,0.3608]
[1734816760625,0.3608,97195.0,97183.0,0.18477073]
[1734816760826,0.051464,97190.0,97183.0,0.18477073]
[1734816761026,0.0425,97189.0,97187.0,0.051465]
[1734816761238,0.0527,97204.0,97183.0,0.18477073]
[1734816761239,0.0487,97204.0,97183.0,0.18477073]
[1734816761428,0.0425,97203.0,97185.0,0.3608]
[1734816761740,0.0425,97203.0,97200.0,0.051458]
[1734816763034,0.0465,97203.0,97185.0,0.3608]
[1734816763225,0.0555,97203.0,97185.0,0.3608]
[1734816763629,0.0555,97203.0,97195.0,0.051461]
[1734816763829,0.0555,97203.0,97185.0,0.3608]
[1734816763830,0.3608,97198.0,97185.0,0.3608]
[1734816764225,0.0555,97203.0,97195.0,0.051461]
[1734816764431,0.0515,97203.0,97185.0,0.3608]
[1734816764631,0.3608,97198.0,97185.0,0.3608]
[1734816764929,0.3608,97196.0,97191.0,0.051463]
[1734816765540,0.3608,97196.0,97185.0,0.3608]
[1734816766128,0.3638,97196.0,97190.0,0.051464]
[1734816766540,0.3708,97196.0,97190.0,0.051464]
[1734816767832,0.3608,97195.0,97190.0,0.051464]
[1734816768940,0.3608,97195.0,97170.0,0.0015435]
[1734816769134,0.3608,97187.0,97182.0,0.051468]
[1734816769337,0.0362,97186.0,97170.0,0.12353357]
[1734816769633,0.0362,97186.0,97184.0,0.051467]
[1734816770236,0.0362,97186.0,97172.0,0.051473]
[1734816770237,0.3608,97187.0,97186.0,0.051466]
[1734816771433,0.001,97187.0,97177.0,0.12199007]
[1734816771634,0.004,97187.0,97177.0,0.48279007]
[1734816771830,0.004,97187.0,97186.0,0.051466]
[1734816772730,0.002,97187.0,97186.0,0.412266]
[1734816772938,0.002,97187.0,97186.0,0.051466]
[1734816773443,0.001,97187.0,97186.0,0.051466]
[1734816774149,0.001,97187.0,97180.0,0.051469]
[1734816774342,0.001,97187.0,97177.0,0.3608]
[1734816774343,0.001,97187.0,97184.0,0.051467]
[1734816774839,0.003,97187.0,97184.0,0.051467]
[1734816775039,0.004,97187.0,97177.0,0.37375806]
[1734816775344,0.001,97187.0,97185.0,0.051466]
[1734816775648,0.003,97187.0,97186.0,0.3608]
[1734816776146,0.002,97187.0,97186.0,0.3608]
[1734816776543,0.3608,97198.0,97186.0,0.3608]
[1734816776843,0.001,97187.0,97186.0,0.412266]
[1734816777551,0.001,97187.0,97186.0,0.414266]
[1734816778041,0.3608,97198.0,97186.0,0.3628]
[1734816778236,0.3608,97198.0,97190.0,0.051464]
[1734816778636,0.001,97187.0,97186.0,0.3678]
[1734816778853,0.001,97187.0,97186.0,0.419266]
[1734816779343,0.3608,97198.0,97186.0,0.3638]
[1734816779547,0.3648,97198.0,97186.0,0.3638]
[1734816779849,0.004,97198.0,97196.0,0.051461]
[1734816781052,0.0368,97202.0,97196.0,0.051461]
[1734816781247,0.0368,97202.0,97191.0,0.18477073]
[1734816781549,0.005,97198.0,97197.0,0.05146]
[1734816782051,0.001,97198.0,97191.0,0.18477073]
[1734816782246,0.004,97198.0,97192.0,0.051463]
[1734816782647,0.004,97198.0,97194.0,0.18477073]
[1734816782948,0.003,97198.0,97194.0,0.23623273]
[1734816783148,0.003,97198.0,97195.0,0.051461]
[1734816783350,0.3608,97196.0,97194.0,0.18477073]
[1734816783537,0.051461,97195.0,97194.0,0.00687073]
[1734816783742,0.051464,97190.0,97188.0,0.24542879]
[1734816784342,0.3608,97192.0,97191.0,0.051463]
[1734816784567,0.0368,97202.0,97198.0,0.05146]
[1734816784744,0.0368,97202.0,97188.0,0.24542879]
[1734816784947,0.0368,97202.0,97199.0,0.051459]
[1734816785159,0.0368,97202.0,97188.0,0.24742879]
[1734816785447,0.06188313,97201.0,97194.0,0.051462]
[1734816785751,0.01042513,97200.0,97195.0,0.051461]
[1734816785952,0.01042513,97199.0,97195.0,0.051461]
[1734816786146,0.01042513,97198.0,97195.0,0.051461]
[1734816786354,0.01042513,97197.0,97195.0,0.051461]
[1734816786548,0.01042513,97196.0,97195.0,0.051461]
[1734816788554,0.01342513,97196.0,97195.0,0.051461]
[1734816788951,0.01442513,97196.0,97195.0,0.051461]
[1734816789148,0.01342513,97196.0,97195.0,0.051461]
[1734816789556,0.01242513,97196.0,97195.0,0.051461]
[1734816790758,0.002,97196.0,97195.0,0.051461]
[1734816790946,0.002,97196.0,97195.0,0.10162084]
[1734816791350,0.002,97196.0,97195.0,0.34704963]
[1734816791854,0.12266371,97203.0,97202.0,0.051458]
[1734816792159,0.12266371,97203.0,97202.0,0.45037651]
[1734816792458,0.1532825,97208.0,97207.0,0.051455]
[1734816792660,0.12273462,97220.0,97213.0,0.051452]
[1734816793654,0.12273462,97220.0,97219.0,0.051449]
[1734816793856,0.12273462,97220.0,97219.0,0.412249]
[1734816794054,0.06189085,97233.0,97224.0,0.051446]
[1734816794259,0.051441,97233.0,97224.0,0.051446]
[1734816794957,0.051441,97233.0,97219.0,0.3608]
[1734816795260,0.09187318,97230.0,97227.0,0.051444]
[1734816796255,0.09187318,97230.0,97224.0,0.002]
[1734816796256,0.09187318,97230.0,97220.0,0.051448]
[1734816796468,0.10787318,97230.0,97227.0,0.002]
[1734816796762,0.016,97230.0,97227.0,0.002]
[1734816797758,0.007,97230.0,97227.0,0.001]
[1734816797955,0.016,97230.0,97226.0,0.051445]
[1734816798256,0.016,97230.0,97220.0,0.001]
[1734816798257,0.007,97230.0,97220.0,0.001]
[1734816798455,0.051445,97226.0,97220.0,0.001]
[1734816798662,0.038,97225.0,97219.0,0.3608]
[1734816799046,0.038,97225.0,97222.0,0.051447]
[1734816799247,0.038,97225.0,97219.0,0.3608]
[1734816799248,0.038,97225.0,97223.0,0.051446]
[1734816800962,0.047,97225.0,97223.0,0.051446]
[1734816801459,0.038,97225.0,97223.0,0.051446]
[1734816801668,0.104446,97225.0,97223.0,0.002]
[1734816802967,0.051451,97216.0,97213.0,0.051452]
[1734816803162,0.0365,97215.0,97213.0,0.051452]
[1734816803868,0.0365,97215.0,97206.0,0.051455]
[1734816804071,0.051455,97208.0,97206.0,0.051455]
[1734816804973,0.3608,97207.0,97206.0,0.051455]
[1734816805266,0.3608,97207.0,97206.0,0.052455]
[1734816806166,0.4013,97207.0,97206.0,0.001]
[1734816807082,0.4083,97207.0,97202.0,0.051458]
[1734816807274,0.0363,97206.0,97182.0,0.24622785]
[1734816807571,0.3608,97196.0,97195.0,0.051461]
[1734816808359,0.01056001,97207.0,97205.0,0.051456]
[1734816808658,0.01,97207.0,97205.0,0.051456]
[1734816809061,0.10187318,97207.0,97205.0,0.051456]
[1734816809368,0.09887318,97207.0,97205.0,0.051456]
[1734816809578,0.15032918,97207.0,97196.0,0.036]
[1734816809770,0.15032918,97207.0,97204.0,0.051456]
[1734816810161,0.14332918,97207.0,97204.0,0.051456]
[1734816810358,0.051456,97207.0,97204.0,0.051456]
[1734816810760,0.058456,97207.0,97204.0,0.051456]
[1734816811166,0.054456,97207.0,97204.0,0.051456]
[1734816811373,0.061456,97207.0,97204.0,0.052456]
[1734816811667,0.007,97207.0,97204.0,0.052456]
[1734816811871,0.01,97207.0,97204.0,0.052456]
[1734816812175,0.051456,97205.0,97204.0,0.001]
[1734816812675,0.06190234,97205.0,97204.0,0.001]
[1734816812866,0.10080234,97205.0,97204.0,0.001]
[1734816813267,0.096356,97205.0,97204.0,0.001]
[1734816813768,0.098356,97205.0,97204.0,0.001]
[1734816814171,0.10880234,97205.0,97204.0,0.001]
[1734816814478,0.098356,97205.0,97204.0,0.001]
[1734816815172,0.10879498,97205.0,97204.0,0.001]
[1734816815571,0.0469,97205.0,97204.0,0.001]
[1734816815874,0.008,97205.0,97204.0,0.001]
[1734816816878,0.09982773,97205.0,97204.0,0.001]
[1734816818277,0.008,97205.0,97204.0,0.001]
[1734816822663,0.006,97205.0,97204.0,0.001]
[1734816822978,0.09182773,97226.0,97225.0,0.051446]
[1734816823782,0.09182773,97226.0,97225.0,0.412246]
[1734816824281,0.005,97226.0,97225.0,0.413246]
[1734816824873,0.09182773,97237.0,97225.0,0.45131874]
[1734816825074,0.09182773,97237.0,97236.0,0.41224]
[1734816826077,0.001,97237.0,97236.0,0.41224]
[1734816826969,0.09182773,97250.0,97243.0,0.051436]
[1734816827376,0.3608,97258.0,97243.0,0.051436]
[1734816827579,0.051431,97253.0,97238.0,0.051438]
[1734816827780,0.3608,97250.0,97238.0,0.051438]
[1734816827976,0.3608,97250.0,97236.0,0.3678]
[1734816828276,0.05297797,97245.0,97236.0,0.3678]
[1734816828781,0.05497797,97245.0,97236.0,0.3608]
[1734816829179,0.05797797,97245.0,97236.0,0.3608]
[1734816829377,0.41224,97237.0,97224.0,0.051446]
[1734816829677,0.3608,97228.0,97224.0,0.051446]
[1734816830071,0.3608,97228.0,97223.0,0.24726873]
[1734816830072,0.3608,97228.0,97223.0,0.00154277]
[1734816831767,0.3608,97228.0,97227.0,0.051444]
[1734816831966,0.3628,97228.0,97227.0,0.051444]
[1734816832279,0.002,97228.0,97227.0,0.051444]
[1734816832477,0.004,97228.0,97227.0,0.051444]
[1734816832677,0.007,97228.0,97227.0,0.051444]
[1734816833080,0.006,97228.0,97227.0,0.051444]
[1734816833278,0.002,97228.0,97227.0,0.051444]
[1734816833479,0.1142,97236.0,97224.0,0.3608]
[1734816833670,0.001,97228.0,97224.0,0.3608]
[1734816833874,0.001,97228.0,97227.0,0.051444]
[1734816834770,0.001,97228.0,97227.0,0.06330471]
[1734816834976,0.00154297,97245.0,97227.0,0.01186071]
[1734816835281,0.00154297,97245.0,97238.0,0.051438]
[1734816836176,0.00254297,97245.0,97238.0,0.051438]
[1734816836793,0.00654297,97245.0,97238.0,0.051438]
[1734816836978,0.00654297,97245.0,97231.0,0.051442]
[1734816837286,0.3608,97239.0,97231.0,0.051442]
[1734816837487,0.3608,97239.0,97225.0,0.01169325]
[1734816837781,0.3608,97239.0,97224.0,0.051446]
[1734816838289,0.3608,97230.0,97224.0,0.051446]
[1734816838490,0.0395,97229.0,97224.0,0.051446]
[1734816838686,0.0395,97229.0,97225.0,0.051445]
[1734816839475,0.0395,97229.0,97226.0,0.051445]
[1734816839689,0.0395,97229.0,97228.0,0.051444]
[1734816840187,0.0425,97229.0,97228.0,0.051444]
[1734816840685,0.0425,97229.0,97224.0,0.003]
[1734816841587,0.0425,97229.0,97225.0,0.051445]
[1734816842179,0.0415,97229.0,97225.0,0.051445]
[1734816842590,0.0395,97229.0,97225.0,0.051445]
[1734816842788,0.0415,97229.0,97226.0,0.051445]
[1734816842983,0.0415,97229.0,97227.0,0.051444]
[1734816844184,0.002,97229.0,97227.0,0.051444]
[1734816844385,0.002,97229.0,97223.0,0.00154277]
[1734816844687,0.3608,97224.0,97223.0,0.00154277]
[1734816845289,0.4751,97224.0,97223.0,0.00154277]
[1734816845489,0.4751,97224.0,97223.0,0.00354277]
[1734816845689,0.4761,97224.0,97223.0,0.00354277]
[1734816845890,0.4761,97224.0,97216.0,0.00013173]
[1734816846090,0.05145,97217.0,97216.0,0.00013173]
[1734816846599,0.01032272,97223.0,97220.0,0.051448]
[1734816846793,0.01032272,97223.0,97216.0,0.00013173]
[1734816846794,0.83842001,97224.0,97222.0,0.051447]
[1734816846990,0.7987,97224.0,97222.0,0.051447]
[1734816847296,0.0381,97224.0,97222.0,0.051447]
[1734816847485,0.002,97224.0,97222.0,0.051447]
[1734816847685,0.001,97224.0,97223.0,0.3608]
[1734816847886,0.09182773,97226.0,97224.0,0.051446]
[1734816848296,0.09182773,97226.0,97225.0,0.0363]
[1734816848998,0.001,97226.0,97225.0,0.087746]
[1734816849190,0.001,97226.0,97225.0,0.051446]
[1734816849594,0.001,97226.0,97222.0,0.051447]
[1734816849798,0.001,97226.0,97224.0,0.051446]
[1734816850495,0.001,97226.0,97220.0,0.01216067]
[1734816850700,0.001,97226.0,97221.0,0.051447]
[1734816851691,0.09182773,97228.0,97216.0,0.00013173]
[1734816851889,0.001,97226.0,97225.0,0.051446]
[1734816852097,0.001,97226.0,97225.0,0.412246]
[1734816852799,0.09182773,97228.0,97225.0,0.412246]
[1734816853201,0.0389,97231.0,97225.0,0.412246]
[1734816854003,0.0378,97233.0,97229.0,0.051443]
[1734816854406,0.49042773,97233.0,97225.0,0.3608]
[1734816854621,0.001,97231.0,97225.0,0.3608]
[1734816854906,0.001,97231.0,97226.0,0.051445]
[1734816855106,0.004,97231.0,97227.0,0.051444]
[1734816855301,0.003,97231.0,97225.0,0.3608]
[1734816856209,0.49594774,97233.0,97227.0,0.051444]
[1734816856523,0.49542773,97233.0,97228.0,0.051444]
[1734816856707,0.49442773,97233.0,97228.0,0.051444]
[1734816856909,0.001,97231.0,97228.0,0.051444]
[1734816857308,0.09282773,97231.0,97228.0,0.051444]
[1734816857508,0.09282773,97231.0,97223.0,0.01214245]
[1734816857509,0.09482773,97231.0,97229.0,0.051443]
[1734816857912,0.09482773,97231.0,97230.0,0.0395]
[1734816858422,0.09582773,97231.0,97230.0,0.0395]
[1734816858719,0.004,97231.0,97230.0,0.07761102]
[1734816859809,0.003,97231.0,97230.0,0.07761102]
[1734816860013,0.004,97231.0,97230.0,0.07761102]
[1734816860210,0.001,97231.0,97230.0,0.07761102]
[1734816860507,0.09182773,97249.0,97231.0,0.102884]
[1734816860714,0.09182773,97249.0,97248.0,0.051433]
[1734816861108,0.0374,97261.0,97251.0,0.051431]
[1734816861109,0.09182773,97256.0,97251.0,0.051431]
[1734816861312,0.09182773,97256.0,97242.0,0.3608]
[1734816861313,0.09182773,97256.0,97254.0,0.05143]
[1734816862219,0.09182773,97259.0,97254.0,0.05143]
[1734816862412,0.09182773,97259.0,97255.0,0.051429]
[1734816863012,0.006,97256.0,97255.0,0.051429]
[1734816863611,0.009,97256.0,97255.0,0.051429]
[1734816863814,0.009,97256.0,97255.0,0.052429]
[1734816864114,0.006,97256.0,97255.0,0.053429]
[1734816864425,0.006,97256.0,97255.0,0.052429]
[1734816864721,0.008,97256.0,97255.0,0.052429]
[1734816865411,0.008,97256.0,97255.0,0.001]
[1734816865813,0.008,97256.0,97246.0,0.051434]
[1734816866010,0.008,97256.0,97247.0,0.051434]
[1734816866414,0.008,97256.0,97254.0,0.05143]
[1734816867020,0.09182773,97255.0,97254.0,0.05143]
[1734816867221,0.09182773,97255.0,97254.0,0.06309187]
[1734816868116,0.09182773,97255.0,97254.0,0.1011637]
[1734816868420,0.009,97256.0,97254.0,0.1021637]
[1734816868626,0.009,97256.0,97254.0,0.06409187]
[1734816869324,0.007,97256.0,97254.0,0.06809187]
[1734816869529,0.007,97256.0,97254.0,0.31418598]
[1734816869718,0.001,97255.0,97254.0,0.32218598]
[1734816870320,0.0392,97279.0,97274.0,0.05142]
[1734816870627,0.0392,97279.0,97266.0,0.48279007]
[1734816870826,0.0393,97283.0,97282.0,0.051415]
[1734816871030,0.09182773,97285.0,97284.0,0.051414]
[1734816871219,0.09182773,97288.0,97273.0,0.12199007]
[1734816871418,0.09182773,97288.0,97287.0,0.051413]
[1734816873233,0.0375,97292.0,97287.0,0.051413]
[1734816874027,0.0375,97292.0,97288.0,0.051412]
[1734816874228,0.0375,97292.0,97290.0,0.051411]
[1734816875218,0.0425,97292.0,97290.0,0.051411]
[1734816875921,0.0465,97292.0,97290.0,0.051411]
[1734816876516,0.0415,97292.0,97290.0,0.06338336]
[1734816876820,0.0455,97292.0,97290.0,0.06438336]
[1734816880729,0.008,97292.0,97290.0,0.06438336]
[1734816881427,0.008,97292.0,97290.0,0.10188336]
[1734816881724,0.008,97292.0,97290.0,0.06438336]
[1734816882125,0.004,97292.0,97290.0,0.052411]
[1734816882437,0.006,97292.0,97290.0,0.052411]
[1734816882628,0.002,97292.0,97290.0,0.051411]
[1734816882933,0.006,97292.0,97290.0,0.051411]
[1734816887723,0.006,97292.0,97291.0,0.00010592]
[1734816888533,0.005,97292.0,97291.0,0.00010592]
[1734816889232,0.004,97292.0,97291.0,0.00010592]
[1734816889429,0.005,97292.0,97291.0,0.00010592]
[1734816889635,0.095,97300.0,97299.0,0.051407]
[1734816889820,0.095,97300.0,97299.0,0.412207]
[1734816890730,0.099,97300.0,97299.0,0.412207]
[1734816891131,0.1,97300.0,97299.0,0.412207]
[1734816892032,0.096,97300.0,97299.0,0.412207]
[1734816892341,0.097,97300.0,97299.0,0.051407]
[1734816892532,0.097,97300.0,97299.0,0.412207]
[1734816897038,0.07177641,97300.0,97299.0,0.42377585]
[1734816897235,0.09182773,97319.0,97318.0,0.051397]
[1734816898239,0.16001721,97324.0,97323.0,0.051394]
[1734816899635,0.12361721,97324.0,97323.0,0.052394]
[1734816900236,0.001,97324.0,97323.0,0.052394]
[1734816900938,0.004,97324.0,97323.0,0.052394]
[1734816901837,0.004,97324.0,97323.0,0.06424524]
[1734816902731,0.004,97324.0,97323.0,0.052394]
[1734816904629,0.004,97324.0,97320.0,0.3608]
[1734816905143,0.004,97324.0,97323.0,0.051394]
[1734816905442,0.002,97324.0,97323.0,0.051394]
[1734816907047,0.3628,97324.0,97317.0,0.01121669]
[1734816907342,0.3628,97324.0,97310.0,0.3608]
[1734816907548,0.3628,97324.0,97319.0,0.051396]
[1734816907738,0.3628,97324.0,97313.0,0.051399]
[1734816908037,0.3608,97324.0,97302.0,0.3608]
[1734816908351,0.3608,97307.0,97306.0,0.01108146]
[1734816908534,0.3608,97307.0,97293.0,0.24609411]
[1734816908736,0.1156,97306.0,97303.0,0.051404]
[1734816909444,0.1156,97306.0,97304.0,0.051404]
[1734816910145,0.20735343,97306.0,97304.0,0.051404]
[1734816910553,0.20835343,97306.0,97304.0,0.051404]
[1734816911237,0.1166,97306.0,97304.0,0.051404]
[1734816911639,0.051404,97305.0,97298.0,0.00154145]
[1734816911839,0.3608,97299.0,97298.0,0.00154145]
[1734816913544,0.3618,97299.0,97298.0,0.00154145]
[1734816913746,0.3618,97299.0,97298.0,0.00254145]
[1734816914041,0.413207,97299.0,97298.0,0.00254145]
[1734816914236,0.413207,97299.0,97298.0,0.00154145]
[1734816914437,0.414207,97299.0,97298.0,0.00154145]
[1734816914643,0.414207,97299.0,97294.0,0.051409]
[1734816915039,0.3628,97299.0,97291.0,0.00010592]
[1734816915240,0.051409,97294.0,97291.0,0.05151692]
[1734816916441,0.41472701,97299.0,97293.0,0.051409]
[1734816916754,0.41472701,97299.0,97291.0,0.00010592]